Cogmind - Beta 16 --- EXPLORER MODE // 2025.11.18 @ 16:06:19 Player: K.K.Y. Result: Destroyed by IP-KWH(R) with Subdweller Machine Gun Performance ------------- Evolutions (0) 0 Regions Visited (3) 600 Robots Destroyed (25) 125 Value Destroyed (793) 793 Prototype IDs (0) 0 Alien Tech Used (0) 0 Bonus (-40) -40 TOTAL SCORE: 1478 Bonus ------- Friendly Fire -40 Cogmind --------- Core Integrity 0/250 Matter 179/300 Energy 100/100 System Corruption 0% Temperature Cool (0) Movement Treading (160) Location -10/Subcaves Parts ------- > --- POWER (1) -------- (None) > --- PROPULSION (3) --- Spiked Treads > --- UTILITY (2) ------ Medium Storage Unit > --- WEAPON (2) ------- Battle Cannon > --- INVENTORY (10) --- Ion Engine Myomer Leg Huge Storage Unit Humpback Scrap Shield Battle Rifle Mining Laser Peak State ------------ > --- POWER ------------ (None) > --- PROPULSION ------- Spiked Treads > --- UTILITY ---------- Medium Storage Unit Light Armor Plating > --- WEAPON ----------- Bore Cannon Grenade Launcher > --- INVENTORY -------- Ion Engine Myomer Leg Huge Storage Unit Humpback Scrap Shield Battle Rifle Battle Cannon Mining Laser [Rating: 12] Favorites ----------- Power Ion Engine Engine Ion Engine Propulsion Aluminum Leg Treads Spiked Treads Leg Aluminum Leg Utility Medium Storage Unit Storage Medium Storage Unit Processor Transport Network Coupler Protection Light Armor Plating Weapon Medium Laser Energy Gun Medium Laser Ballistic Cannon Bore Cannon Launcher Grenade Launcher Build | -11 -10 -10 -10 ------- Run | Yrd Mat Min Sub Slots Evolved 1 | . 1 . . Power . | . . . . Propulsion 1 | . 1 . . Utility . | . . . . Weapon . | . . . . Parts Attached 13 | 7 1 . 5 Power 1 | 1 . . . Engine 1 | 1 . . . Core . | . . . . Reactor . | . . . . Propulsion 4 | 2 1 . 1 Treads 1 | . . . 1 Leg 3 | 2 1 . . Wheel . | . . . . Hover . | . . . . Flight . | . . . . Utility 3 | 2 . . 1 Device . | . . . . Storage 1 | 1 . . . Processor 1 | 1 . . . Hackware . | . . . . Protection 1 | . . . 1 Artifact . | . . . . Weapon 5 | 2 . . 3 Energy Gun 2 | 2 . . . Energy Cannon . | . . . . Ballistic Gun . | . . . . Ballistic Cannon 2 | . . . 2 Launcher 1 | . . . 1 Special Weapon . | . . . . Impact Weapon . | . . . . Slashing Weapon . | . . . . Piercing Weapon . | . . . . Special Melee Weapon . | . . . . Unidentified Prototypes . | . . . . Parts Lost 8 | . 2 . 6 Power 1 | . . . 1 Propulsion 2 | . 1 . 1 Utility 1 | . . . 1 Weapon 4 | . 1 . 3 Highest Loss Streak 3 | . 2 . 3 To Critical Strikes . | . . . . Average Backups 5 | . . 4 7 Power . | . . . 1 Propulsion . | . . . . Utility 2 | . . 2 2 Weapon 2 | . . 1 2 Tool/Special . | . . . . Unused Backups 7 | . . . 7 Power 1 | . . . 1 Propulsion 1 | . . . 1 Utility 3 | . . . 3 Weapon 2 | . . . 2 Tool/Special . | . . . . Average Slot Usage (%) 61 | . 95 64 51 Engine 6 | . 12 12 1 Treads 3 | . . . 7 Leg 9 | . 33 14 1 Storage 12 | . 12 12 12 Processor 6 | . 12 12 1 Protection 2 | . . . 4 Energy Gun 7 | . 23 12 1 Ballistic Cannon 5 | . . . 10 Launcher 5 | . . . 10 Peak Build Rating 12 | 7 8 6 12 Average Rating 7 | 4 7 5 9 On Entrance 4 | . 7 6 5 Avg Prop Armor Cover (%) 10 | . 8 11 . Naked Turns . | . . . . Heaviest Build 25 | 19 19 17 25 Greatest Support 30 | 20 30 10 20 Greatest Overweight (x) 8 | . 1 1 8 Average Overweight (x) 1 | . . 1 2 Largest Inventory Capacity 10 | 10 10 10 10 Average Capacity 9 | 8 10 10 10 Most Carried 10 | 5 3 5 10 Average Carried 6 | . . 4 9 Final Capacity 10 | 10 10 10 10 Final Carried 9 | . 3 5 9 Class Distribution -------------------- 100% | Hacker-Mutant Dominant Class ---------------- Hacker-Mutant | -10/Materials Hacker-Mutant | -10/Mines Hacker-Mutant | -10/Subcaves Resources | -11 -10 -10 -10 ----------- Run | Yrd Mat Min Sub Matter Collected 670 | 220 80 65 305 Remotely . | . . . . Salvage Created 771 | . 378 41 352 Parts 48 | . 15 6 27 Haulers Intercepted . | . . . . Recyclers Shooed 1 | . 1 . . Parts Field Recycled . | . . . . Retrieved Matter . | . . . . Parts Self-Destructed . | . . . . Prevented . | . . . . Parts Restored . | . . . . Kills | -11 -10 -10 -10 ------- Run | Yrd Mat Min Sub Combat Hostiles Destroyed 22 | . 7 3 12 Guns 10 | . 7 3 . Cannons 6 | . . . 6 AOE 6 | . . . 6 Classes Destroyed 6 | . 3 1 2 Worker 1 | . 1 . . Watcher 2 | . 2 . . Swarmer 3 | . . 3 . Grunt 8 | . 7 . 1 Sentry 1 | . . . 1 Subdweller 10 | . . . 10 Best Kill Streak 6 | . 5 2 6 Combat Bots Only 6 | . 3 2 6 Max Kills in Single Turn 3 | . 1 1 3 Gunslinging . | . . . . Exploded 3 | . . . 3 Melee . | . . . . Uniques/NPCs Destroyed . | . . . . Combat | -11 -10 -10 -10 -------- Run | Yrd Mat Min Sub Hostile Shots Fired 134 | . 70 8 56 Missed 42 | . 27 4 11 Hits 92 | . 43 4 45 Projectile 92 | . 43 4 45 AOE 5 | . . . 5 Critical Strikes 1 | . . . 1 Damage Taken 1165 | . 348 19 798 Core 259 | . 71 10 178 Absorbed by Shields . | . . . . Ignored by Resistances 702 | . 219 14 469 Core Remaining (%) 100 | 100 . . . Volleys Fired 97 | . 31 5 61 Largest 2 | . 2 1 1 Hottest 90 | . 90 50 50 Shots Fired 118 | . 52 5 61 Gun 62 | . 52 5 5 Cannon 53 | . . . 53 Launcher 3 | . . . 3 Special . | . . . . Kinetic 53 | . . . 53 Thermal 41 | . 31 5 5 Explosive 3 | . . . 3 Electromagnetic 21 | . 21 . . Robot Hit Streak 14 | . 14 3 14 Robot Miss Streak 3 | . 3 1 1 Penetration Max . | . . . . Secondary Targets 3 | . 3 . . Max Gunslinging Chain 1 | . 1 . . Shots Hit Robots 86 | . 42 4 40 Core Hits 42 | . 18 4 20 Critical Kills 6 | . . . 6 Critical Parts Destroyed 5 | . . . 5 Critical Strikes 22 | . 1 3 18 Burn 4 | . 1 3 . Destroy 18 | . . . 18 Melee Attacks . | . . . . Impact . | . . . . Slashing . | . . . . Piercing . | . . . . Sneak Attacks . | . . . . Combat Hostiles . | . . . . Follow-up Attacks . | . . . . Damage Inflicted 1946 | . 706 76 1164 Guns 678 | . 565 51 62 Cannons 605 | . . . 605 Explosions 625 | . 128 . 497 Melee . | . . . . Ramming 38 | . 13 25 . Kinetic 605 | . . . 605 Thermal 540 | . 427 51 62 Explosive 497 | . . . 497 Electromagnetic 266 | . 266 . . Impact . | . . . . Slashing . | . . . . Piercing . | . . . . Highest Corruption . | . . . . Average Corruption . | . . . . Corruption Purged . | . . . . Corruption Blocked . | . . . . Overload Shots . | . . . . Overflow Damage . | . . . . Projectiles . | . . . . Explosions . | . . . . Melee . | . . . . Knockbacks 9 | . . . 9 Impact . | . . . . Kinetic 9 | . . . 9 Secondary . | . . . . Self-Inflicted Damage 93 | . 22 . 71 Shots 4 | . 1 . 3 Rammed . | . . . . Targets Rammed 8 | . 1 7 . Kicked 8 | . 1 7 . Crushed . | . . . . Highest Temperature 553 | . 553 30 . Average Temperature 226 | . 244 13 . Received Heat Transfer 468 | . 294 . 174 Effects 15 | . 15 . . Shutdowns 1 | . 1 . . Energy Bleed 4 | . 4 . . Interference 3 | . 3 . . Matter Decay 2 | . 2 . . Short Circuit 1 | . 1 . . Damage (minor) 1 | . 1 . . Damage (major) 3 | . 3 . . Siege Activations . | . . . . Martial Activations . | . . . . Shielding Activations . | . . . . Robots Disrupted . | . . . . Combat Hostiles . | . . . . Robots Corrupted . | . . . . Combat Hostiles . | . . . . Parts Fried . | . . . . Impact Corruptions . | . . . . Robots Melted . | . . . . Combat Hostiles . | . . . . Parts Melted 4 | . 2 2 . Heat Transferred 1717 | . 1162 370 185 Parts Sabotaged . | . . . . Parts Stolen . | . . . . Parts Stripped . | . . . . Power Chain Reactions 2 | . 2 . . Alert | -11 -10 -10 -10 ------- Run | Yrd Mat Min Sub Maximum Alert Level . | . . . . Low Security (%) 100 | 100 100 100 . Level 1 . | . . . . Level 2 . | . . . . Level 3 . | . . . . Level 4 . | . . . . Level 5 . | . . . . High Security . | . . . . Max Security . | . . . . Peak Influence 91 | . 91 35 . Initial 11 | . . 11 . Average 7 | . 27 2 . Influence Increases 331 | . 196 95 40 Destroy 0b10 Robot/C 240 | . 140 60 40 Destroy 0b10 Robot/NC 15 | . 15 . . Destroy Leader 54 | . 34 20 . Destroy Structure 7 | . 7 . . Lose Combat Pursuer 15 | . . 15 . Influence Decreases 331 | . 155 136 40 Entered New Map 30 | . . 30 . Time Decay 281 | . 135 106 40 Lost Part 20 | . 20 . . Squads Dispatched 2 | . 2 . . Investigation 2 | . 2 . . Extermination . | . . . . Reinforcement . | . . . . Assault . | . . . . Garrison . | . . . . Intercept . | . . . . Searches Triggered . | . . . . Construction Impeded . | . . . . Haulers Reinforced . | . . . . Active Scanning Responses . | . . . . Cargo Convoy Interrupts . | . . . . Stealth | -11 -10 -10 -10 --------- Run | Yrd Mat Min Sub Distress Signals . | . . . . Communications Jammed . | . . . . Distress Signals . | . . . . Times Spotted 40 | . 16 4 20 Peak Tracking Total 6 | . 6 2 6 Tactical Retreats 1 | . . 1 . Traps | -11 -10 -10 -10 ------- Run | Yrd Mat Min Sub Traps Triggered 1 | . 1 . . Indirectly . | . . . . Trap Hack Attempts . | . . . . Triggered . | . . . . Disarmed . | . . . . Reprogrammed . | . . . . Reused . | . . . . Traps Extracted . | . . . . Installed . | . . . . Triggered . | . . . . Machines | -11 -10 -10 -10 ---------- Run | Yrd Mat Min Sub Machines Disabled . | . . . . Max in Single Turn . | . . . . Machines Repaired . | . . . . Machines Dismantled . | . . . . Machines Sabotaged . | . . . . Overloaded Fab Kills . | . . . . Hacking | -11 -10 -10 -10 --------- Run | Yrd Mat Min Sub Machines Accessed 4 | . 4 . . Terminals 4 | . 4 . . Fabricators . | . . . . Repair Stations . | . . . . Recycling Units . | . . . . Scanalyzers . | . . . . Garrison Access . | . . . . Total Hacks 13 | . 13 . . Successful 6 | . 6 . . Failed 7 | . 7 . . Catastrophic . | . . . . Database Lockouts . | . . . . Manual . | . . . . Terminals 13 | . 13 . . Fabricators . | . . . . Repair Stations . | . . . . Recycling Units . | . . . . Scanalyzers . | . . . . Garrison Access . | . . . . Terminal Hacks 6 | . 6 . . Emergency Access Points 2 | . 2 . . Locate Traps 1 | . 1 . . Hauler Manifests 1 | . 1 . . Zone Layout 2 | . 2 . . Fabricator Hacks . | . . . . Repair Station Hacks . | . . . . Recycling Unit Hacks . | . . . . Scanalyzer . | . . . . Garrison Access Hacks . | . . . . Unauthorized Hacks . | . . . . Terminals . | . . . . Fabricators . | . . . . Repair Stations . | . . . . Recycling Units . | . . . . Scanalyzers . | . . . . Garrison Access . | . . . . Data Cores Recovered . | . . . . Used . | . . . . Hacking Detections 4 | . 4 . . Full Trace Events 2 | . 2 . . Feedback Events . | . . . . Feedback Blocked . | . . . . Robot Schematics Acquired . | . . . . Robots Built . | . . . . Authchips . | . . . . Time . | . . . . Total Robot Build Rating . | . . . . Part Schematics Acquired . | . . . . Parts Built . | . . . . Authchips . | . . . . Time . | . . . . Total Part Build Rating . | . . . . Part Studies Acquired . | . . . . Parts Repaired . | . . . . Time . | . . . . Parts Recycled . | . . . . Recycled Matter . | . . . . Retrieved Matter . | . . . . Retrieved Components . | . . . . Parts Scanalyzed . | . . . . Part Schematics Acquired . | . . . . Parts Damaged . | . . . . Bothacking | -11 -10 -10 -10 ------------ Run | Yrd Mat Min Sub Used RIF Installer . | . . . . Robots Hacked . | . . . . Non-combat . | . . . . Combat . | . . . . Robot Hacks Applied . | . . . . Relay Couplers Released . | . . . . Fabnet Peak Effective % . | . . . . Robots Rewired . | . . . . Allies Hacked . | . . . . Hacks Repelled . | . . . . Allies | -11 -10 -10 -10 -------- Run | Yrd Mat Min Sub Total Allies . | . . . . Largest Group . | . . . . Highest-Rated Group . | . . . . Highest-Rated Ally . | . . . . Total Orders . | . . . . Ally Attacks . | . . . . Total Damage . | . . . . Kills . | . . . . Allies Corrupted . | . . . . Allies Melted . | . . . . Intel | -11 -10 -10 -10 ------- Run | Yrd Mat Min Sub Active Infowar (turns) 310 | 42 268 . . T.N.C. 310 | 42 268 . . Robot Analysis Total . | . . . . Derelict Logs Recovered 1 | . . . 1 Drone Launches . | . . . . Drone Recoveries . | . . . . Exploration | -11 -10 -10 -10 ------------- Run | Yrd Mat Min Sub Turns Passed 3267 | 61 327 1236 1643 Spaces Moved 1339 | 49 191 593 506 Core 120 | 17 . . 103 Treads 352 | . . . 352 Legs 867 | 32 191 593 51 Wheels . | . . . . Hover . | . . . . Flight . | . . . . Fastest Speed 50 | 50 120 190 160 Average Speed 212 | 95 122 190 285 Slowest Speed 450 | 120 190 190 450 Overloaded Moves . | . . . . Propulsion Burnouts . | . . . . Robots Hopped . | . . . . Potential Cave-ins . | . . . . Cave-ins Triggered . | . . . . Exploration Rate (%) 41 | 5 36 97 29 Regions Visited 3 Branch Regions 2 Pre-discovered Areas . | . . . . Known Exits Taken 3 | 1 1 1 . Unknown Exits Taken . | . . . . Scrap Searched 7 | . . . 7 Spaces Dug 1 | . . . 1 Terrain Destroyed 31 | . 6 . 25 Melee . | . . . . Projectile 8 | . . . 8 AOE 23 | . 6 . 17 Terrain Rammed . | . . . . Walls Destroyed . | . . . . Machines Disabled . | . . . . Actions | -11 -10 -10 -10 --------- Run | Yrd Mat Min Sub Total 1632 | 63 231 692 646 Wait 150 | . . 84 66 Move 1336 | 48 190 592 506 Hop . | . . . . Pick Up 22 | 7 6 2 7 Fast Attach 1 | 1 . . . Attach 14 | 6 3 . 5 Detach 2 | . . 1 1 Swap . | . . . . Drop 2 | 1 . 1 . Fire 97 | . 31 5 61 Melee . | . . . . Ram . | . . . . Kick 8 | . 1 7 . Crush . | . . . . Escape Stasis . | . . . . Rewire . | . . . . Trap . | . . . . Miscellaneous . | . . . . Route ------- -11/Scrapyard -10/Materials -10/Mines (discovered 3 exits: *Mat x2 / *Sub) -10/Subcaves History --------- Turn | Location | Event 6 | -11/Scrapyard | Identified exit to Materials 6 | -11/Scrapyard | Discovered exit to Materials (range 16) 62 | -11/Scrapyard | Entered Materials 62 | -10/Materials | Evolved 1 slot: Propulsion x1 193 | -10/Materials | Identified exit to Mines 193 | -10/Materials | Discovered exit to Mines (range 15) 302 | -10/Materials | Build established: Hacker-Mutant 389 | -10/Materials | Entered Mines 398 | -10/Mines | YI-UF0 nonchalantly dropped a Grenade Launcher on the ground 433 | -10/Mines | Identified exit to Materials 433 | -10/Mines | Discovered exit to Materials (range 8) 1220 | -10/Mines | Discovered exit to Materials (range 5) 1610 | -10/Mines | Identified exit to Subcaves 1610 | -10/Mines | Discovered exit to Subcaves (range 5) 1625 | -10/Mines | Entered Subcaves 1626 | -10/Subcaves | Approached by a straggling Scientist 1769 | -10/Subcaves | Ambushed by swarm of Subdwellers 1782 | -10/Subcaves | Core integrity fell below 50% 1814 | -10/Subcaves | Lost 3 parts (1p1n1w) 2463 | -10/Subcaves | Disturbed a concealed Subdweller 2634 | -10/Subcaves | Learned Materials stockpile data 2771 | -10/Subcaves | Shifting Twisted Machinery released Hvy. Riot Gun 2778 | -10/Subcaves | Shifting Twisted Machinery released Piercing Trap 3235 | -10/Subcaves | Ambushed by Subdweller buried in earth 3237 | -10/Subcaves | Ambushed by Subdweller buried in earth 3240 | -10/Subcaves | Core integrity fell below 20% 3268 | -10/Subcaves | Destroyed by IP-KWH(R) with Subdweller Machine Gun Last Messages --------------- 03243_ HV Slug penetrates I4-1S0(R). 03243_ I4-1S0(R) suffers critical hit (Destroy). 03243_ HV Slug penetrates Wall. 03245_ HV Slug penetrates I4-1S0(R). 03245_ I4-1S0(R) suffers critical hit (Destroy). 03245_ I4-1S0(R) destroyed. 03247_ HV Slug penetrates SG-E2D(R). 03247_ HV Slug penetrates Earth. 03250_ SG-E2D(R) suffers critical hit (Destroy). 03252_ HV Slug penetrates Wall. 03252_ HV Slug penetrates Twisted Machinery. 03254_ SG-E2D(R) affixes Scrap Shield Fragment to Scrap Shield. 03254_ SG-E2D(R) suffers critical hit (Destroy). 03254_ SG-E2D(R) knocked back. 03255_ Bore Cannon destroyed. 03261_ IP-KWH(R) knocked back. 03264_ SG-E2D(R) affixes Scrap Shield Fragment to Scrap Shield. 03267_ IP-KWH(R) knocked back. Map ----- +----------------------------------------------------+ | ?????????????????????????????????????????????????? | | ?????????????????????????????????????????????????? | | ??????????????????###????????????????????????????? | | ?????????????????## ##???????????????????????????? | | ????????????????## ##??????????????????????????? | | ???????######?### #######????????????????????? | | ??????## ### "##"" #???????????????? | | #?????# " #????????????????? | | #???### #????????????????? | | ##### # ## #???????????????? | | ## ####### ## ## ????????????? | | #?????## #???## ? "?????????????? | | #??????## #??# #?????????????????? | | ###% [ #??????## #?# #?????????????????? | | ## %=%######???#### ## #?????????????????? | | ### = #????????# g #?????????????????? | | ??# !#????????# ###??[????????????? | | ??# #??####### ##""????????????? | | ### #??# ## %" """ ??????????? | | "" #??# =" !R "#?????????? | | ## #### %* &%%%????????????? | | ## ## %% !% ;#??????????????? | | ### ### # % ##??????????????? | | # # % ## #???????????? | | % ????????? | | ## ### ## @ R ????????? | | ! !#######?###### % ######## ?????????? | | #####????????????#### %% #??????????????????? | | ???????????????????# ## # ###??????????????????? | | ???????????????????##?#######????????????????????? | | ?????????????????????????????????????????????????? | | ?????????????????????????????????????????????????? | | ?????????????????????????????????????????????????? | | ?????????????????????????????????????????????????? | | ?????????????????????????????????????????????????? | | ?????????????????????????????????????????????????? | | ?????????????????????????????????????????????????? | | ?????????????????????????????????????????????????? | | ?????????????????????????????????????????????????? | | ?????????????????????????????????????????????????? | | ?????????????????????????????????????????????????? | | ?????????????????????????????????????????????????? | | | | | | | | | | | | | | | | | +----------------------------------------------------+ Best States ------------- Heat Dissipation 25 Energy Generation 10 Energy Capacity 250 Matter Stores 300 Matter Capacity 300 Sight Range 16 Terrain Scan Density 10 Armor Coverage 150 Resistance: KI 35 Resistance: TH 35 Resistance: EX 35 Resistance: EM 35 Resistance: I 35 Resistance: S 35 Resistance: P 35 Evasion (%) 55 Recoil Reduction 1 Offensive Hacking 20 Item Schematics ----------------- None Robot Schematics ------------------ None Fabricated ------------ Nothing Repaired ---------- Nothing Studied --------- None Alien Tech Used ----------------- None Achievements -------------- None Challenges ------------ None Game ------ Seed LaunchMasterDiverter Manual? 0 Play Time 00:21:41 Cumulative 109.2 hours Start 2025.11.18 @ 14:18:58 End 2025.11.18 @ 16:06:19 Sessions 1 Manual Loads 0 Difficulty Explorer Special Mode None Game No. 126 Rogue 0 Adventurer 0 Explorer 126 Win Type - Total 0 Types 0/0/0/0/0/0/0/0/0/0 Lore% 62 Gallery% 61 Achievement% 47 Wizard Run 0 Options --------- Layout 1 ASCII 0 Keyboard 0 Movement Mouse Keybinds 0 Fullscreen 1 Font 24/Smallcaps Map View 50x35 Zoom Use 0% Tactical HUD 1 Map Filters NONE Filters NONE Steam 1 RUN: 3e9f4901-1277-4887-84a3-2c587514146e